[Event "January 9 Early 2024"]
[Site "https://www.chess.com"]
[Date "2024.01.11"]
[Round "7"]
[White "Liascovich, Lucas"]
[Black "Djokic, Mihailo"]
[Result "1-0"]
[Board "39"]
[TimeControl "180+1"]
[WhiteFideId "108634"]
[BlackFideId "976440"]
[WhiteElo "2908"]
[BlackElo "2676"]
[WhiteTeam "ARG"]
[BlackTeam "SRB"]
[WhiteClock "0:01:30"]
[BlackClock "0:00:41"]

1. e4 {[%clk 0:03:00]}  c5 {[%clk 0:02:59]} 2. Nc3 {[%clk 0:03:00]}  Nc6 {[%clk 0:02:59]} 3. Bb5 {[%clk 0:02:59]}  Nd4 {[%clk 0:03:00]} 4. Nf3 {[%clk 0:02:58]}  a6 {[%clk 0:03:00]} 5. Bd3 {[%clk 0:02:58]}  Nc6 {[%clk 0:03:00]} 6. O-O {[%clk 0:02:55]}  g6 {[%clk 0:02:58]} 7. e5 {[%clk 0:02:53]}  Bg7 {[%clk 0:02:58]} 8. Re1 {[%clk 0:02:54]}  Nh6 {[%clk 0:02:52]} 9. Be4 {[%clk 0:02:54]}  Ng4 {[%clk 0:02:49]} 10. Bxc6 {[%clk 0:02:52]}  dxc6 {[%clk 0:02:49]} 11. d3 {[%clk 0:02:46]}  O-O {[%clk 0:02:41]} 12. h3 {[%clk 0:02:46]}  Nh6 {[%clk 0:02:41]} 13. Bf4 {[%clk 0:02:46]}  Nf5 {[%clk 0:02:41]} 14. a4 {[%clk 0:02:41]}  Nd4 {[%clk 0:02:38]} 15. a5 {[%clk 0:02:39]}  h6 {[%clk 0:02:26]} 16. Ne4 {[%clk 0:02:37]}  Ne6 {[%clk 0:01:46]} 17. Be3 {[%clk 0:02:26]}  Qd5 {[%clk 0:01:46]} 18. c4 {[%clk 0:02:25]}  Qd7 {[%clk 0:01:45]} 19. Nxc5 {[%clk 0:02:18]}  Nxc5 {[%clk 0:01:45]} 20. Bxc5 {[%clk 0:02:19]}  Rd8 {[%clk 0:01:45]} 21. d4 {[%clk 0:02:19]}  Qe6 {[%clk 0:01:41]} 22. Qb3 {[%clk 0:02:11]}  Bf8 {[%clk 0:01:34]} 23. Rad1 {[%clk 0:02:09]}  Qf5 {[%clk 0:01:29]} 24. Qe3 {[%clk 0:02:07]}  g5 {[%clk 0:01:26]} 25. Nd2 {[%clk 0:02:01]}  Be6 {[%clk 0:01:25]} 26. b3 {[%clk 0:02:01]}  Rd7 {[%clk 0:01:25]} 27. Ne4 {[%clk 0:01:59]}  Rad8 {[%clk 0:01:24]} 28. Bb6 {[%clk 0:01:58]}  Rc8 {[%clk 0:01:24]} 29. Nc5 {[%clk 0:01:58]}  Bg7 {[%clk 0:01:19]} 30. Nxd7 {[%clk 0:01:56]}  Bxd7 {[%clk 0:01:19]} 31. Bc5 {[%clk 0:01:53]}  Re8 {[%clk 0:01:17]} 32. Qd3 {[%clk 0:01:48]}  e6 {[%clk 0:00:53]} 33. Qxf5 {[%clk 0:01:46]}  exf5 {[%clk 0:00:54]} 34. f4 {[%clk 0:01:46]}  g4 {[%clk 0:00:52]} 35. d5 {[%clk 0:01:43]}  cxd5 {[%clk 0:00:51]} 36. cxd5 {[%clk 0:01:44]}  Rc8 {[%clk 0:00:48]} 37. Rc1 {[%clk 0:01:43]}  h5 {[%clk 0:00:46]} 38. Be7 {[%clk 0:01:38]}  Re8 {[%clk 0:00:46]} 39. d6 {[%clk 0:01:35]}  Be6 {[%clk 0:00:42]} 40. Red1 {[%clk 0:01:34]}  gxh3 {[%clk 0:00:42]} 41. d7 {[%clk 0:01:30]}  Bxd7 {[%clk 0:00:41]} 42. Rxd7 {[%clk 0:01:30]} 1-0

[Event "January 9 Early 2024"]
[Site "https://www.chess.com"]
[Date "2024.01.11"]
[Round "7"]
[White "Mrithyunjay Mahadevan"]
[Black "Ambartsumova, Karina"]
[Result "0-1"]
[Board "41"]
[TimeControl "180+1"]
[WhiteFideId "45003521"]
[BlackFideId "4166299"]
[WhiteElo "2442"]
[BlackElo "2600"]
[WhiteTeam "IND"]
[BlackTeam "RUS"]
[WhiteClock "0:01:08"]
[BlackClock "0:00:41"]

1. c4 {[%clk 0:02:57]}  e6 {[%clk 0:02:57]} 2. g3 {[%clk 0:02:55]}  Nf6 {[%clk 0:02:57]} 3. Bg2 {[%clk 0:02:56]}  d5 {[%clk 0:02:58]} 4. Nf3 {[%clk 0:02:55]}  dxc4 {[%clk 0:02:58]} 5. Qa4+ {[%clk 0:02:54]}  c6 {[%clk 0:02:58]} 6. Qxc4 {[%clk 0:02:54]}  b5 {[%clk 0:02:59]} 7. Qc2 {[%clk 0:02:54]}  Bb7 {[%clk 0:02:59]} 8. O-O {[%clk 0:02:50]}  Nbd7 {[%clk 0:02:59]} 9. Nd4 {[%clk 0:02:48]}  Rc8 {[%clk 0:02:52]} 10. Nc3 {[%clk 0:02:42]}  Qb6 {[%clk 0:02:49]} 11. e3 {[%clk 0:02:39]}  a6 {[%clk 0:02:40]} 12. a4 {[%clk 0:02:39]}  c5 {[%clk 0:02:35]} 13. Nf3 {[%clk 0:02:34]}  Be7 {[%clk 0:02:28]} 14. axb5 {[%clk 0:02:32]}  axb5 {[%clk 0:02:29]} 15. d3 {[%clk 0:02:25]}  O-O {[%clk 0:02:28]} 16. Bd2 {[%clk 0:02:21]}  Bc6 {[%clk 0:02:26]} 17. Qb3 {[%clk 0:02:15]}  Rfd8 {[%clk 0:02:20]} 18. Ne2 {[%clk 0:02:07]}  Qb7 {[%clk 0:02:08]} 19. Ne1 {[%clk 0:01:44]}  Bxg2 {[%clk 0:02:05]} 20. Nxg2 {[%clk 0:01:45]}  Ne5 {[%clk 0:02:05]} 21. Bc3 {[%clk 0:01:37]}  Nxd3 {[%clk 0:01:54]} 22. Ngf4 {[%clk 0:01:34]}  c4 {[%clk 0:01:45]} 23. Qc2 {[%clk 0:01:25]}  b4 {[%clk 0:01:36]} 24. Bxf6 {[%clk 0:01:24]}  Bxf6 {[%clk 0:01:36]} 25. Rad1 {[%clk 0:01:14]}  Nxb2 {[%clk 0:01:09]} 26. Rxd8+ {[%clk 0:01:13]}  Rxd8 {[%clk 0:01:10]} 27. Nh5 {[%clk 0:01:14]}  Qf3 {[%clk 0:00:48]} 28. Nef4 {[%clk 0:01:08]}  Bc3 {[%clk 0:00:41]} 0-1

[Event "January 9 Early 2024"]
[Site "https://www.chess.com"]
[Date "2024.01.11"]
[Round "7"]
[White "Baules Rodriguez, Jorge Luis"]
[Black "Dominguez Perez, Leinier"]
[Result "0-1"]
[Board "42"]
[TimeControl "180+1"]
[WhiteFideId "6600247"]
[BlackFideId "3503240"]
[WhiteElo "2606"]
[BlackElo "2974"]
[WhiteTeam "PAN"]
[BlackTeam "USA"]
[WhiteClock "0:00:15"]
[BlackClock "0:01:35"]

1. e4 {[%clk 0:03:00]}  c5 {[%clk 0:02:59]} 2. Nf3 {[%clk 0:03:00]}  d6 {[%clk 0:02:59]} 3. d4 {[%clk 0:03:01]}  cxd4 {[%clk 0:02:59]} 4. Nxd4 {[%clk 0:03:02]}  Nf6 {[%clk 0:02:59]} 5. Nc3 {[%clk 0:03:02]}  a6 {[%clk 0:03:00]} 6. Be3 {[%clk 0:03:03]}  e5 {[%clk 0:03:00]} 7. Nb3 {[%clk 0:03:04]}  Be6 {[%clk 0:03:00]} 8. Qd2 {[%clk 0:03:04]}  Nbd7 {[%clk 0:03:00]} 9. f4 {[%clk 0:03:04]}  b5 {[%clk 0:03:00]} 10. f5 {[%clk 0:03:03]}  Bc4 {[%clk 0:02:59]} 11. O-O-O {[%clk 0:03:02]}  Be7 {[%clk 0:02:59]} 12. Kb1 {[%clk 0:03:02]}  Qc7 {[%clk 0:02:56]} 13. g4 {[%clk 0:02:57]}  h6 {[%clk 0:02:50]} 14. Rg1 {[%clk 0:02:50]}  b4 {[%clk 0:02:45]} 15. Nd5 {[%clk 0:02:13]}  Nxd5 {[%clk 0:02:44]} 16. exd5 {[%clk 0:02:13]}  a5 {[%clk 0:02:43]} 17. Nc1 {[%clk 0:01:48]}  Nf6 {[%clk 0:02:43]} 18. Bxc4 {[%clk 0:01:45]}  Qxc4 {[%clk 0:02:43]} 19. Qd3 {[%clk 0:01:20]}  Rc8 {[%clk 0:02:31]} 20. h3 {[%clk 0:01:14]}  Ne4 {[%clk 0:02:17]} 21. Qxc4 {[%clk 0:01:10]}  Rxc4 {[%clk 0:02:17]} 22. Nb3 {[%clk 0:01:10]}  Bd8 {[%clk 0:02:16]} 23. Nd2 {[%clk 0:01:01]}  Nxd2+ {[%clk 0:02:15]} 24. Rxd2 {[%clk 0:01:02]}  Bg5 {[%clk 0:02:15]} 25. Rg3 {[%clk 0:00:46]}  Bxe3 {[%clk 0:02:01]} 26. Rxe3 {[%clk 0:00:47]}  h5 {[%clk 0:02:01]} 27. b3 {[%clk 0:00:37]}  Rf4 {[%clk 0:01:57]} 28. Rg2 {[%clk 0:00:27]}  hxg4 {[%clk 0:01:57]} 29. hxg4 {[%clk 0:00:25]}  Rh1+ {[%clk 0:01:56]} 30. Kb2 {[%clk 0:00:26]}  Rff1 {[%clk 0:01:54]} 31. c3 {[%clk 0:00:24]}  Ra1 {[%clk 0:01:38]} 32. cxb4 {[%clk 0:00:20]}  axb4 {[%clk 0:01:37]} 33. Rge2 {[%clk 0:00:15]}  Rhc1 {[%clk 0:01:35]} 0-1

[Event "January 9 Early 2024"]
[Site "https://www.chess.com"]
[Date "2024.01.11"]
[Round "7"]
[White "Spichkin, Alexander"]
[Black "Espinoza Villanueva, Rodrigo"]
[Result "1-0"]
[Board "44"]
[TimeControl "180+1"]
[WhiteFideId "4144074"]
[BlackFideId "5140188"]
[WhiteElo "2420"]
[BlackElo "2589"]
[WhiteTeam "RUS"]
[BlackTeam "MEX"]
[WhiteClock "0:01:13"]
[BlackClock "0:00:19"]

1. f4 {[%clk 0:03:00]}  d5 {[%clk 0:02:58]} 2. Nf3 {[%clk 0:03:00]}  g6 {[%clk 0:02:58]} 3. e3 {[%clk 0:02:49]}  Bg7 {[%clk 0:02:58]} 4. Be2 {[%clk 0:02:49]}  Nf6 {[%clk 0:02:56]} 5. O-O {[%clk 0:02:50]}  O-O {[%clk 0:02:57]} 6. d3 {[%clk 0:02:50]}  c5 {[%clk 0:02:57]} 7. Kh1 {[%clk 0:02:51]}  b6 {[%clk 0:02:57]} 8. a4 {[%clk 0:02:51]}  Bb7 {[%clk 0:02:56]} 9. Ne5 {[%clk 0:02:50]}  Nc6 {[%clk 0:02:54]} 10. Nxc6 {[%clk 0:02:49]}  Bxc6 {[%clk 0:02:54]} 11. Qe1 {[%clk 0:02:50]}  Re8 {[%clk 0:02:51]} 12. Qg3 {[%clk 0:02:47]}  Qc7 {[%clk 0:02:51]} 13. Nd2 {[%clk 0:02:45]}  e5 {[%clk 0:02:50]} 14. f5 {[%clk 0:02:45]}  Rad8 {[%clk 0:02:49]} 15. Qh4 {[%clk 0:02:37]}  e4 {[%clk 0:02:45]} 16. dxe4 {[%clk 0:02:27]}  Nxe4 {[%clk 0:02:41]} 17. fxg6 {[%clk 0:02:19]}  hxg6 {[%clk 0:02:42]} 18. Bd3 {[%clk 0:02:14]}  Nd6 {[%clk 0:02:29]} 19. Nf3 {[%clk 0:02:12]}  Ne4 {[%clk 0:02:09]} 20. Bxe4 {[%clk 0:01:58]}  Rxe4 {[%clk 0:02:10]} 21. Qf2 {[%clk 0:01:57]}  Bxa4 {[%clk 0:01:04]} 22. Ng5 {[%clk 0:01:52]}  Rc4 {[%clk 0:00:58]} 23. b3 {[%clk 0:01:23]}  Bxa1 {[%clk 0:00:59]} 24. bxc4 {[%clk 0:01:23]}  Bg7 {[%clk 0:00:47]} 25. Qh4 {[%clk 0:01:17]}  Re8 {[%clk 0:00:19]} 26. cxd5 {[%clk 0:01:13]} 1-0

[Event "January 9 Early 2024"]
[Site "https://www.chess.com"]
[Date "2024.01.11"]
[Round "7"]
[White "Putri, Regita Desyari"]
[Black "Horak, Martin"]
[Result "0-1"]
[Board "46"]
[TimeControl "180+1"]
[WhiteFideId "7109083"]
[BlackFideId "367095"]
[WhiteElo "2231"]
[BlackElo "2526"]
[WhiteTeam "INA"]
[BlackTeam "CZE"]
[WhiteClock "0:00:39"]
[BlackClock "0:01:12"]

1. e4 {[%clk 0:02:58]}  c5 {[%clk 0:03:00]} 2. Nf3 {[%clk 0:02:58]}  Nc6 {[%clk 0:02:58]} 3. Bb5 {[%clk 0:02:57]}  Nf6 {[%clk 0:02:58]} 4. Qe2 {[%clk 0:02:49]}  Qc7 {[%clk 0:02:55]} 5. O-O {[%clk 0:02:48]}  a6 {[%clk 0:02:53]} 6. Bxc6 {[%clk 0:02:45]}  Qxc6 {[%clk 0:02:54]} 7. Re1 {[%clk 0:02:44]}  d6 {[%clk 0:02:52]} 8. h3 {[%clk 0:02:44]}  g6 {[%clk 0:02:51]} 9. c3 {[%clk 0:02:44]}  Bg7 {[%clk 0:02:50]} 10. d4 {[%clk 0:02:44]}  O-O {[%clk 0:02:45]} 11. Nbd2 {[%clk 0:02:40]}  cxd4 {[%clk 0:02:41]} 12. Nxd4 {[%clk 0:02:32]}  Qc7 {[%clk 0:02:39]} 13. Nf1 {[%clk 0:02:32]}  b5 {[%clk 0:02:34]} 14. Ng3 {[%clk 0:02:29]}  Bb7 {[%clk 0:02:33]} 15. a3 {[%clk 0:02:27]}  Rac8 {[%clk 0:02:32]} 16. Bg5 {[%clk 0:02:04]}  Qc4 {[%clk 0:02:30]} 17. Qxc4 {[%clk 0:01:48]}  Rxc4 {[%clk 0:02:29]} 18. f3 {[%clk 0:01:48]}  Rfc8 {[%clk 0:02:27]} 19. Nb3 {[%clk 0:01:47]}  Ra4 {[%clk 0:02:07]} 20. Rad1 {[%clk 0:01:39]}  h6 {[%clk 0:02:03]} 21. Be3 {[%clk 0:01:37]}  Nd7 {[%clk 0:02:04]} 22. Nf1 {[%clk 0:01:22]}  Ne5 {[%clk 0:01:59]} 23. Nfd2 {[%clk 0:01:21]}  Nd3 {[%clk 0:01:59]} 24. Rb1 {[%clk 0:01:11]}  Nxe1 {[%clk 0:01:58]} 25. Rxe1 {[%clk 0:01:12]}  a5 {[%clk 0:01:48]} 26. Bb6 {[%clk 0:01:06]}  b4 {[%clk 0:01:38]} 27. Nxa5 {[%clk 0:00:44]}  bxc3 {[%clk 0:01:38]} 28. bxc3 {[%clk 0:00:42]}  Bxc3 {[%clk 0:01:35]} 29. Nxb7 {[%clk 0:00:42]}  Bxd2 {[%clk 0:01:35]} 30. Rd1 {[%clk 0:00:43]}  Bc3 {[%clk 0:01:17]} 31. Rd3 {[%clk 0:00:39]}  Rxa3 {[%clk 0:01:12]} 0-1

[Event "January 9 Early 2024"]
[Site "https://www.chess.com"]
[Date "2024.01.11"]
[Round "7"]
[White "Csonka, Balazs"]
[Black "Ashraf, Artin"]
[Result "0-1"]
[Board "49"]
[TimeControl "180+1"]
[WhiteFideId "742910"]
[BlackFideId "22514805"]
[WhiteElo "2704"]
[BlackElo "2908"]
[WhiteTeam "HUN"]
[BlackTeam "IRI"]
[WhiteClock "0:00:11"]
[BlackClock "0:01:06"]

1. e4 {[%clk 0:02:59]}  c5 {[%clk 0:02:56]} 2. Nf3 {[%clk 0:02:59]}  d6 {[%clk 0:02:56]} 3. d4 {[%clk 0:02:56]}  cxd4 {[%clk 0:02:56]} 4. Nxd4 {[%clk 0:02:57]}  Nf6 {[%clk 0:02:57]} 5. Nc3 {[%clk 0:02:57]}  a6 {[%clk 0:02:57]} 6. Bd3 {[%clk 0:02:51]}  e5 {[%clk 0:02:49]} 7. Nde2 {[%clk 0:02:50]}  Be7 {[%clk 0:02:49]} 8. O-O {[%clk 0:02:48]}  O-O {[%clk 0:02:50]} 9. Ng3 {[%clk 0:02:46]}  Be6 {[%clk 0:02:49]} 10. Nd5 {[%clk 0:02:43]}  Bxd5 {[%clk 0:02:49]} 11. exd5 {[%clk 0:02:43]}  g6 {[%clk 0:02:50]} 12. c4 {[%clk 0:02:41]}  Nbd7 {[%clk 0:02:50]} 13. Bh6 {[%clk 0:02:29]}  Re8 {[%clk 0:02:38]} 14. Rc1 {[%clk 0:02:29]}  Bf8 {[%clk 0:02:23]} 15. Be3 {[%clk 0:02:08]}  h5 {[%clk 0:02:22]} 16. b4 {[%clk 0:01:54]}  Ng4 {[%clk 0:02:12]} 17. Bd2 {[%clk 0:01:02]}  Qh4 {[%clk 0:01:34]} 18. h3 {[%clk 0:01:02]}  Nxf2 {[%clk 0:01:33]} 19. Kxf2 {[%clk 0:00:37]}  e4 {[%clk 0:01:32]} 20. Be1 {[%clk 0:00:21]}  exd3 {[%clk 0:01:12]} 21. Qxd3 {[%clk 0:00:22]}  Qf4+ {[%clk 0:01:09]} 22. Kg1 {[%clk 0:00:11]}  Qxc1 {[%clk 0:01:08]} 23. Bc3 {[%clk 0:00:11]}  Qe3+ {[%clk 0:01:05]} 24. Qxe3 {[%clk 0:00:11]}  Rxe3 {[%clk 0:01:06]} 0-1

[Event "January 9 Early 2024"]
[Site "https://www.chess.com"]
[Date "2024.01.11"]
[Round "7"]
[White "Samunenkov, Ihor"]
[Black "Bharath Subramaniyam H"]
[Result "0-1"]
[Board "51"]
[TimeControl "180+1"]
[WhiteFideId "14187086"]
[BlackFideId "46634827"]
[WhiteElo "2773"]
[BlackElo "2958"]
[WhiteTeam "UKR"]
[BlackTeam "IND"]
[WhiteClock "0:00:17"]
[BlackClock "0:01:17"]

1. d4 {[%clk 0:03:00]}  Nf6 {[%clk 0:02:59]} 2. Nc3 {[%clk 0:03:01]}  d5 {[%clk 0:02:58]} 3. Bf4 {[%clk 0:03:01]}  Bf5 {[%clk 0:02:57]} 4. e3 {[%clk 0:03:00]}  e6 {[%clk 0:02:58]} 5. Bd3 {[%clk 0:03:00]}  Bg6 {[%clk 0:02:58]} 6. Nf3 {[%clk 0:03:00]}  Nbd7 {[%clk 0:02:58]} 7. O-O {[%clk 0:02:52]}  Bd6 {[%clk 0:02:58]} 8. Bg3 {[%clk 0:02:45]}  O-O {[%clk 0:02:57]} 9. Qe2 {[%clk 0:02:43]}  Bxg3 {[%clk 0:02:52]} 10. hxg3 {[%clk 0:02:44]}  c5 {[%clk 0:02:53]} 11. Bxg6 {[%clk 0:02:34]}  hxg6 {[%clk 0:02:54]} 12. Rfd1 {[%clk 0:02:08]}  a6 {[%clk 0:02:53]} 13. a3 {[%clk 0:01:49]}  b5 {[%clk 0:02:51]} 14. e4 {[%clk 0:01:48]}  b4 {[%clk 0:02:46]} 15. axb4 {[%clk 0:01:46]}  cxb4 {[%clk 0:02:46]} 16. e5 {[%clk 0:01:44]}  bxc3 {[%clk 0:02:46]} 17. exf6 {[%clk 0:01:44]}  cxb2 {[%clk 0:02:30]} 18. fxg7 {[%clk 0:01:43]}  Kxg7 {[%clk 0:02:25]} 19. Ra2 {[%clk 0:01:29]}  Rb8 {[%clk 0:01:58]} 20. Rb1 {[%clk 0:01:28]}  a5 {[%clk 0:01:53]} 21. Rbxb2 {[%clk 0:00:55]}  Qc7 {[%clk 0:01:48]} 22. Qa6 {[%clk 0:00:42]}  Rxb2 {[%clk 0:01:46]} 23. Rxb2 {[%clk 0:00:43]}  Rb8 {[%clk 0:01:46]} 24. Ra2 {[%clk 0:00:33]}  Rb1+ {[%clk 0:01:43]} 25. Kh2 {[%clk 0:00:33]}  Nf6 {[%clk 0:01:41]} 26. Ne5 {[%clk 0:00:32]}  Qb8 {[%clk 0:01:20]} 27. g4 {[%clk 0:00:20]}  Nxg4+ {[%clk 0:01:17]} 28. Kg3 {[%clk 0:00:20]}  Nxe5 {[%clk 0:01:18]} 29. dxe5 {[%clk 0:00:21]}  Qxe5+ {[%clk 0:01:18]} 30. Kh3 {[%clk 0:00:17]}  Rh1+ {[%clk 0:01:17]} 0-1

[Event "January 9 Early 2024"]
[Site "https://www.chess.com"]
[Date "2024.01.11"]
[Round "7"]
[White "Kolmagorov, Alexey"]
[Black "Kotlyar, Kirill"]
[Result "0-1"]
[Board "54"]
[TimeControl "180+1"]
[WhiteFideId "34129402"]
[BlackFideId "24145599"]
[WhiteElo "2376"]
[BlackElo "2583"]
[WhiteTeam "RUS"]
[BlackTeam "RUS"]
[WhiteClock "0:01:03"]
[BlackClock "0:00:27"]

1. d4 {[%clk 0:02:54]}  Nf6 {[%clk 0:02:59]} 2. c4 {[%clk 0:02:54]}  g6 {[%clk 0:03:00]} 3. g3 {[%clk 0:02:52]}  c6 {[%clk 0:02:59]} 4. Bg2 {[%clk 0:02:52]}  d5 {[%clk 0:03:00]} 5. Nf3 {[%clk 0:02:52]}  Bg7 {[%clk 0:03:00]} 6. Nbd2 {[%clk 0:02:53]}  O-O {[%clk 0:03:00]} 7. O-O {[%clk 0:02:53]}  Bf5 {[%clk 0:02:58]} 8. b3 {[%clk 0:02:53]}  Ne4 {[%clk 0:02:58]} 9. Bb2 {[%clk 0:02:53]}  Qa5 {[%clk 0:02:54]} 10. a3 {[%clk 0:02:48]}  b5 {[%clk 0:02:20]} 11. b4 {[%clk 0:02:42]}  Qc7 {[%clk 0:02:16]} 12. c5 {[%clk 0:02:42]}  a5 {[%clk 0:02:15]} 13. Nh4 {[%clk 0:02:41]}  axb4 {[%clk 0:02:00]} 14. Nxe4 {[%clk 0:02:35]}  Bxe4 {[%clk 0:01:55]} 15. axb4 {[%clk 0:02:27]}  Rxa1 {[%clk 0:01:52]} 16. Qxa1 {[%clk 0:02:28]}  Bxg2 {[%clk 0:01:51]} 17. Nxg2 {[%clk 0:02:29]}  Nd7 {[%clk 0:01:50]} 18. Qa6 {[%clk 0:02:23]}  e5 {[%clk 0:01:35]} 19. e3 {[%clk 0:02:21]}  Re8 {[%clk 0:01:20]} 20. dxe5 {[%clk 0:02:17]}  Nxe5 {[%clk 0:01:16]} 21. Bxe5 {[%clk 0:02:03]}  Bxe5 {[%clk 0:01:13]} 22. Nf4 {[%clk 0:02:00]}  d4 {[%clk 0:01:02]} 23. exd4 {[%clk 0:01:53]}  Bxf4 {[%clk 0:01:01]} 24. gxf4 {[%clk 0:01:53]}  Re4 {[%clk 0:00:58]} 25. f3 {[%clk 0:01:29]}  Rxd4 {[%clk 0:00:52]} 26. Qa8+ {[%clk 0:01:29]}  Rd8 {[%clk 0:00:49]} 27. Qa5 {[%clk 0:01:19]}  Qd7 {[%clk 0:00:42]} 28. Qb6 {[%clk 0:01:11]}  Re8 {[%clk 0:00:39]} 29. Ra1 {[%clk 0:01:03]}  Qd4+ {[%clk 0:00:32]} 30. Kg2 {[%clk 0:01:03]}  Qxa1 {[%clk 0:00:27]} 0-1

[Event "January 9 Early 2024"]
[Site "https://www.chess.com"]
[Date "2024.01.11"]
[Round "7"]
[White "Biriukov, Ilja"]
[Black "Aukhatov, Roman"]
[Result "0-1"]
[Board "55"]
[TimeControl "180+1"]
[WhiteFideId "4113373"]
[BlackFideId "44150768"]
[WhiteElo "2251"]
[BlackElo "2440"]
[WhiteTeam "RUS"]
[BlackTeam "RUS"]
[WhiteClock "0:00:17"]
[BlackClock "0:01:12"]

1. d4 {[%clk 0:03:00]}  Nf6 {[%clk 0:02:54]} 2. Nc3 {[%clk 0:03:00]}  d5 {[%clk 0:02:53]} 3. Bf4 {[%clk 0:02:59]}  c5 {[%clk 0:02:53]} 4. e3 {[%clk 0:02:58]}  cxd4 {[%clk 0:02:51]} 5. exd4 {[%clk 0:02:58]}  Bf5 {[%clk 0:02:52]} 6. Bd3 {[%clk 0:02:56]}  Bxd3 {[%clk 0:02:51]} 7. Qxd3 {[%clk 0:02:57]}  Nc6 {[%clk 0:02:51]} 8. a3 {[%clk 0:02:56]}  e6 {[%clk 0:02:51]} 9. Nf3 {[%clk 0:02:55]}  Bd6 {[%clk 0:02:36]} 10. Bg3 {[%clk 0:02:49]}  O-O {[%clk 0:02:36]} 11. Ne5 {[%clk 0:02:43]}  a6 {[%clk 0:02:33]} 12. O-O {[%clk 0:02:40]}  Rc8 {[%clk 0:02:32]} 13. Rfe1 {[%clk 0:02:36]}  Bxe5 {[%clk 0:02:11]} 14. Bxe5 {[%clk 0:02:22]}  Nd7 {[%clk 0:02:09]} 15. Bd6 {[%clk 0:02:17]}  Re8 {[%clk 0:02:07]} 16. Rad1 {[%clk 0:02:06]}  Qb6 {[%clk 0:01:50]} 17. Qe3 {[%clk 0:01:02]}  Nxd4 {[%clk 0:01:45]} 18. Qxd4 {[%clk 0:00:55]}  Qxd6 {[%clk 0:01:40]} 19. h3 {[%clk 0:00:49]}  Nf6 {[%clk 0:01:35]} 20. Qh4 {[%clk 0:00:44]}  Qb6 {[%clk 0:01:24]} 21. Ne2 {[%clk 0:00:36]}  Rxc2 {[%clk 0:01:21]} 22. b4 {[%clk 0:00:33]}  Ne4 {[%clk 0:01:19]} 23. Rf1 {[%clk 0:00:29]}  Rxe2 {[%clk 0:01:15]} 24. Qg4 {[%clk 0:00:23]}  Rc2 {[%clk 0:01:13]} 25. h4 {[%clk 0:00:19]}  Rxf2 {[%clk 0:01:12]} 26. Rxf2 {[%clk 0:00:17]}  Nxf2 {[%clk 0:01:12]} 0-1

[Event "January 9 Early 2024"]
[Site "https://www.chess.com"]
[Date "2024.01.11"]
[Round "7"]
[White "Castellano, Christopher"]
[Black "Gutierrez Carmona, Juan Alejandro"]
[Result "1-0"]
[Board "56"]
[TimeControl "180+1"]
[WhiteFideId "5203651"]
[BlackFideId "5106770"]
[WhiteElo "2380"]
[BlackElo "2183"]
[WhiteTeam "PHI"]
[BlackTeam "MEX"]
[WhiteClock "0:01:07"]
[BlackClock "0:00:02"]

1. d4 {[%clk 0:02:48]}  d5 {[%clk 0:02:59]} 2. Bf4 {[%clk 0:02:49]}  e6 {[%clk 0:02:59]} 3. e3 {[%clk 0:02:49]}  Bd6 {[%clk 0:02:58]} 4. Bg3 {[%clk 0:02:49]}  Nf6 {[%clk 0:02:52]} 5. Nd2 {[%clk 0:02:44]}  c5 {[%clk 0:02:51]} 6. c3 {[%clk 0:02:43]}  Nc6 {[%clk 0:02:49]} 7. Ngf3 {[%clk 0:02:44]}  Bxg3 {[%clk 0:02:48]} 8. hxg3 {[%clk 0:02:43]}  Qd6 {[%clk 0:02:48]} 9. Bb5 {[%clk 0:02:41]}  h6 {[%clk 0:02:45]} 10. Qe2 {[%clk 0:02:39]}  Bd7 {[%clk 0:02:42]} 11. Rd1 {[%clk 0:02:38]}  cxd4 {[%clk 0:02:37]} 12. exd4 {[%clk 0:02:37]}  a6 {[%clk 0:02:31]} 13. Ba4 {[%clk 0:02:34]}  Na5 {[%clk 0:02:17]} 14. Bc2 {[%clk 0:02:29]}  Bb5 {[%clk 0:02:08]} 15. Qe3 {[%clk 0:02:21]}  Rc8 {[%clk 0:01:39]} 16. a4 {[%clk 0:02:19]}  Bd7 {[%clk 0:00:58]} 17. Ne5 {[%clk 0:02:18]}  b5 {[%clk 0:00:45]} 18. axb5 {[%clk 0:02:13]}  Bxb5 {[%clk 0:00:43]} 19. Ra1 {[%clk 0:02:14]}  Qb6 {[%clk 0:00:37]} 20. g4 {[%clk 0:02:05]}  Nd7 {[%clk 0:00:19]} 21. Nxd7 {[%clk 0:01:42]}  Kxd7 {[%clk 0:00:14]} 22. Qf4 {[%clk 0:01:36]}  f6 {[%clk 0:00:12]} 23. b4 {[%clk 0:01:08]}  Nc4 {[%clk 0:00:09]} 24. Nb3 {[%clk 0:01:08]}  Nd6 {[%clk 0:00:02]} 25. Nc5+ {[%clk 0:01:07]} 1-0

[Event "January 9 Early 2024"]
[Site "https://www.chess.com"]
[Date "2024.01.11"]
[Round "7"]
[White "Buchenau, Frank"]
[Black "Winkels, Marcel"]
[Result "1-0"]
[Board "60"]
[TimeControl "180+1"]
[WhiteFideId "4604350"]
[BlackFideId "1003887"]
[WhiteElo "2404"]
[BlackElo "2017"]
[WhiteTeam "GER"]
[BlackTeam "NED"]
[WhiteClock "0:01:15"]
[BlackClock "0:00:01"]

1. e4 {[%clk 0:03:00]}  d5 {[%clk 0:03:00]} 2. exd5 {[%clk 0:03:00]}  Qxd5 {[%clk 0:03:00]} 3. Nc3 {[%clk 0:03:00]}  Qd6 {[%clk 0:03:00]} 4. d4 {[%clk 0:03:00]}  Nf6 {[%clk 0:03:00]} 5. Nf3 {[%clk 0:02:59]}  c6 {[%clk 0:03:00]} 6. Ne5 {[%clk 0:02:59]}  Nd5 {[%clk 0:02:50]} 7. Ne4 {[%clk 0:02:47]}  Qd8 {[%clk 0:02:43]} 8. Ng5 {[%clk 0:02:32]}  f6 {[%clk 0:02:23]} 9. Nef7 {[%clk 0:02:28]}  Qb6 {[%clk 0:02:15]} 10. Nxh8 {[%clk 0:02:26]}  fxg5 {[%clk 0:02:14]} 11. Qh5+ {[%clk 0:02:19]}  g6 {[%clk 0:01:55]} 12. Qxh7 {[%clk 0:02:19]}  Bf5 {[%clk 0:01:49]} 13. Qf7+ {[%clk 0:02:18]}  Kd7 {[%clk 0:01:47]} 14. Qxf8 {[%clk 0:02:13]}  Qxd4 {[%clk 0:01:29]} 15. Be2 {[%clk 0:02:04]}  Qb4+ {[%clk 0:01:07]} 16. Bd2 {[%clk 0:01:57]}  Qxb2 {[%clk 0:01:03]} 17. O-O {[%clk 0:01:57]}  Qxc2 {[%clk 0:00:37]} 18. Rad1 {[%clk 0:01:48]}  a5 {[%clk 0:00:22]} 19. Nf7 {[%clk 0:01:48]}  Qe4 {[%clk 0:00:13]} 20. Qc8+ {[%clk 0:01:46]}  Kxc8 {[%clk 0:00:10]} 21. Bf3 {[%clk 0:01:42]}  Qe6 {[%clk 0:00:09]} 22. Nxg5 {[%clk 0:01:42]}  Qf6 {[%clk 0:00:08]} 23. Rfe1 {[%clk 0:01:41]}  Nd7 {[%clk 0:00:08]} 24. Ne4 {[%clk 0:01:36]}  Qf7 {[%clk 0:00:06]} 25. Ng5 {[%clk 0:01:33]}  Qf8 {[%clk 0:00:05]} 26. Ne6 {[%clk 0:01:31]}  Bxe6 {[%clk 0:00:04]} 27. Rxe6 {[%clk 0:01:32]}  Kc7 {[%clk 0:00:04]} 28. Rc1 {[%clk 0:01:30]}  Kb8 {[%clk 0:00:02]} 29. Bxd5 {[%clk 0:01:22]}  cxd5 {[%clk 0:00:01]} 30. g3 {[%clk 0:01:15]}  Ka7 {[%clk 0:00:01]} 31. Rc7 {[%clk 0:01:15]} 1-0